[Event "Late-Titled-Tuesday-Blitz-March-12-2024"]
[Site "Chess.com"]
[Date "2024.03.12"]
[Round "5"]
[White "lucasran"]
[Black "WhiteKnight2612"]
[Result "1/2-1/2"]
[WhiteElo "2613"]
[BlackElo "2840"]
[TimeControl "180+1"]
[EndTime "14:58:04 PDT"]
[Termination "Game drawn by 50-move rule"]

1. Nf3 {[%clk 0:02:59.7]} 1... f5 {[%clk 0:02:56.8]} 2. d4 {[%clk 0:02:57]} 2...
Nf6 {[%clk 0:02:57.7]} 3. c4 {[%clk 0:02:57.4]} 3... g6 {[%clk 0:02:57.4]} 4. g3
{[%clk 0:02:58]} 4... Bg7 {[%clk 0:02:58.3]} 5. Bg2 {[%clk 0:02:58.8]} 5... O-O
{[%clk 0:02:59.2]} 6. O-O {[%clk 0:02:59.7]} 6... d6 {[%clk 0:02:59.9]} 7. Nc3
{[%clk 0:03:00.6]} 7... c6 {[%clk 0:03:00.6]} 8. d5 {[%clk 0:02:59.9]} 8... e5
{[%clk 0:02:55.5]} 9. dxe6 {[%clk 0:03:00.8]} 9... Bxe6 {[%clk 0:02:55.7]} 10.
b3 {[%clk 0:03:01.6]} 10... Kh8 {[%clk 0:02:52.5]} 11. Bb2 {[%clk 0:03:01.7]}
11... Bg8 {[%clk 0:02:52.4]} 12. Qc2 {[%clk 0:02:56.8]} 12... a5 {[%clk
0:02:52.8]} 13. Rad1 {[%clk 0:02:56.5]} 13... Qc7 {[%clk 0:02:53.3]} 14. e3
{[%clk 0:02:56.8]} 14... Na6 {[%clk 0:02:53.8]} 15. h4 {[%clk 0:02:42.1]} 15...
Nc5 {[%clk 0:02:53.8]} 16. Nd4 {[%clk 0:02:33.8]} 16... a4 {[%clk 0:02:52.5]}
17. Qb1 {[%clk 0:02:22.1]} 17... axb3 {[%clk 0:02:47.8]} 18. axb3 {[%clk
0:02:23]} 18... Ng4 {[%clk 0:02:48.2]} 19. Nce2 {[%clk 0:02:19]} 19... Qb6
{[%clk 0:02:43.4]} 20. Nf4 {[%clk 0:02:13.3]} 20... Ne5 {[%clk 0:02:40.2]} 21.
Bc3 {[%clk 0:02:09.6]} 21... Ra3 {[%clk 0:02:37.5]} 22. Bb2 {[%clk 0:01:41.6]}
22... Ra6 {[%clk 0:02:34.7]} 23. Qc2 {[%clk 0:01:23.5]} 23... Rfa8 {[%clk
0:02:32.7]} 24. Ra1 {[%clk 0:01:23.1]} 24... Qb4 {[%clk 0:01:58.8]} 25. Rxa6
{[%clk 0:01:21.1]} 25... Rxa6 {[%clk 0:01:59.7]} 26. Bc3 {[%clk 0:01:16.3]}
26... Qa3 {[%clk 0:01:59.5]} 27. Ra1 {[%clk 0:00:59.7]} 27... Qxa1+ {[%clk
0:02:00]} 28. Bxa1 {[%clk 0:01:00.6]} 28... Rxa1+ {[%clk 0:02:00.6]} 29. Kh2
{[%clk 0:01:01.5]} 29... Ng4+ {[%clk 0:01:49.5]} 30. Kh3 {[%clk 0:01:02]} 30...
Nd7 {[%clk 0:01:32.9]} 31. Nde6 {[%clk 0:00:53.9]} 31... Be5 {[%clk 0:01:31.4]}
32. Bf3 {[%clk 0:00:53.5]} 32... Ndf6 {[%clk 0:01:26.3]} 33. Kg2 {[%clk
0:00:53.3]} 33... Re1 {[%clk 0:01:13.6]} 34. Nd3 {[%clk 0:00:49.3]} 34... Rxe3
{[%clk 0:01:11.1]} 35. Nxe5 {[%clk 0:00:35.6]} 35... dxe5 {[%clk 0:01:12]} 36.
Nc5 {[%clk 0:00:20.4]} 36... b6 {[%clk 0:01:05.7]} 37. Na4 {[%clk 0:00:17.3]}
37... b5 {[%clk 0:01:03.8]} 38. Nc5 {[%clk 0:00:17.8]} 38... h5 {[%clk
0:00:52.3]} 39. Qd2 {[%clk 0:00:18.1]} 39... Rxf3 {[%clk 0:00:32.7]} 40. Kxf3
{[%clk 0:00:19]} 40... bxc4 {[%clk 0:00:33.6]} 41. bxc4 {[%clk 0:00:17.5]} 41...
Bxc4 {[%clk 0:00:34.5]} 42. Kg2 {[%clk 0:00:15.3]} 42... Bd5+ {[%clk 0:00:33.9]}
43. Kg1 {[%clk 0:00:15.7]} 43... Ne4 {[%clk 0:00:30]} 44. Nxe4 {[%clk
0:00:15.8]} 44... Bxe4 {[%clk 0:00:30.9]} 45. Qd7 {[%clk 0:00:15]} 45... Bd5
{[%clk 0:00:29.7]} 46. Qe7 {[%clk 0:00:14.8]} 46... e4 {[%clk 0:00:29.3]} 47.
Kf1 {[%clk 0:00:14.4]} 47... Kg8 {[%clk 0:00:29.7]} 48. Ke2 {[%clk 0:00:14.2]}
48... Kh8 {[%clk 0:00:30]} 49. Qc7 {[%clk 0:00:11.3]} 49... Kg8 {[%clk
0:00:29.4]} 50. Qa7 {[%clk 0:00:09.2]} 50... Nf6 {[%clk 0:00:26.7]} 51. Ke3
{[%clk 0:00:08.2]} 51... Bf7 {[%clk 0:00:22]} 52. Kf4 {[%clk 0:00:08.7]} 52...
Kg7 {[%clk 0:00:21.9]} 53. Ke5 {[%clk 0:00:07.9]} 53... Ng4+ {[%clk 0:00:21.1]}
54. Kf4 {[%clk 0:00:08.5]} 54... Nh6 {[%clk 0:00:16.8]} 55. Qd4+ {[%clk
0:00:08.5]} 55... Kh7 {[%clk 0:00:16.5]} 56. Kg5 {[%clk 0:00:08.3]} 56... Ng8
{[%clk 0:00:17.1]} 57. Qd7 {[%clk 0:00:08.1]} 57... Kg7 {[%clk 0:00:18]} 58.
Qxc6 {[%clk 0:00:08.4]} 58... Ba2 {[%clk 0:00:17.1]} 59. Qa6 {[%clk 0:00:08]}
59... Bf7 {[%clk 0:00:17.4]} 60. Qa7 {[%clk 0:00:08.2]} 60... Kf8 {[%clk
0:00:17.9]} 61. Qb8+ {[%clk 0:00:07.4]} 61... Kg7 {[%clk 0:00:18.3]} 62. Qe5+
{[%clk 0:00:08.2]} 62... Kf8 {[%clk 0:00:18.5]} 63. Qh8 {[%clk 0:00:08.9]} 63...
Ke7 {[%clk 0:00:18.4]} 64. Qe5+ {[%clk 0:00:08.7]} 64... Kf8 {[%clk 0:00:18.8]}
65. Kf4 {[%clk 0:00:09.4]} 65... Ne7 {[%clk 0:00:18.1]} 66. Qd6 {[%clk
0:00:09.7]} 66... Ke8 {[%clk 0:00:17.8]} 67. Kg5 {[%clk 0:00:10]} 67... Ng8
{[%clk 0:00:18]} 68. Qc5 {[%clk 0:00:08.4]} 68... Kd7 {[%clk 0:00:17.7]} 69. Qe5
{[%clk 0:00:08.9]} 69... Kd8 {[%clk 0:00:16]} 70. Kf4 {[%clk 0:00:07.6]} 70...
Kd7 {[%clk 0:00:16]} 71. Ke3 {[%clk 0:00:08.2]} 71... Ne7 {[%clk 0:00:15.2]} 72.
Kd2 {[%clk 0:00:07.5]} 72... Be6 {[%clk 0:00:14.5]} 73. Qf6 {[%clk 0:00:07.3]}
73... Kd6 {[%clk 0:00:14.7]} 74. Ke2 {[%clk 0:00:05.4]} 74... Kd7 {[%clk
0:00:14.2]} 75. Kd1 {[%clk 0:00:05.5]} 75... Bb3+ {[%clk 0:00:13.8]} 76. Kc1
{[%clk 0:00:06]} 76... Be6 {[%clk 0:00:14.7]} 77. Kb2 {[%clk 0:00:06.8]} 77...
Kd6 {[%clk 0:00:15.2]} 78. Ka3 {[%clk 0:00:07.2]} 78... Kd7 {[%clk 0:00:15]} 79.
Ka4 {[%clk 0:00:07.7]} 79... Kd6 {[%clk 0:00:15.5]} 80. Ka5 {[%clk 0:00:08.3]}
80... Kd7 {[%clk 0:00:15.5]} 81. Kb5 {[%clk 0:00:08.3]} 81... Bd5 {[%clk
0:00:14.6]} 82. Kc5 {[%clk 0:00:07.8]} 82... Be6 {[%clk 0:00:15.3]} 83. Kd4
{[%clk 0:00:08.5]} 83... Nc6+ {[%clk 0:00:14.9]} 84. Kc5 {[%clk 0:00:09.1]}
84... Ne7 {[%clk 0:00:15.8]} 85. Qg7 {[%clk 0:00:09.5]} 85... Ba2 {[%clk
0:00:14.7]} 86. Kd4 {[%clk 0:00:09.2]} 86... Ke6 {[%clk 0:00:11.4]} 87. Ke3
{[%clk 0:00:09.5]} 87... Nd5+ {[%clk 0:00:11.3]} 88. Kd2 {[%clk 0:00:08]} 88...
Ne7 {[%clk 0:00:12.2]} 89. Kc3 {[%clk 0:00:06.1]} 89... Bd5 {[%clk 0:00:13.1]}
90. Kd4 {[%clk 0:00:05.8]} 90... Nc6+ {[%clk 0:00:13.5]} 91. Kc5 {[%clk
0:00:06.1]} 91... Ne7 {[%clk 0:00:14.4]} 92. Qf8 {[%clk 0:00:04.7]} 92... Ba2
{[%clk 0:00:13.3]} 93. Qd8 {[%clk 0:00:03.4]} 93... Bd5 {[%clk 0:00:12.2]} 94.
Qd6+ {[%clk 0:00:03.7]} 94... Kf7 {[%clk 0:00:12.8]} 95. Kd4 {[%clk 0:00:04.3]}
95... Ba2 {[%clk 0:00:11.4]} 96. Ke5 {[%clk 0:00:04.7]} 96... Ng8 {[%clk
0:00:09.4]} 97. Qd7+ {[%clk 0:00:04.5]} 97... Kf8 {[%clk 0:00:09.7]} 98. Qc8+
{[%clk 0:00:03.6]} 98... Kg7 {[%clk 0:00:09.8]} 99. Kf4 {[%clk 0:00:03.9]} 99...
Bf7 {[%clk 0:00:09.3]} 100. Kg5 {[%clk 0:00:04.2]} 100... Kh7 {[%clk 0:00:09.4]}
101. Qd7 {[%clk 0:00:03.8]} 101... Kg7 {[%clk 0:00:09]} 102. Qc7 {[%clk
0:00:04.5]} 102... Kf8 {[%clk 0:00:07.5]} 103. Qd8+ {[%clk 0:00:03.5]} 103...
Kg7 {[%clk 0:00:08]} 104. Qd4+ {[%clk 0:00:04.2]} 104... Kf8 {[%clk 0:00:08.9]}
105. Qe5 {[%clk 0:00:04.9]} 105... Be8 {[%clk 0:00:07.1]} 106. Qe6 {[%clk
0:00:04.2]} 106... Bf7 {[%clk 0:00:08]} 107. Qe5 {[%clk 0:00:03.3]} 107... Be8
{[%clk 0:00:08.4]} 108. Kf4 {[%clk 0:00:02.9]} 1/2-1/2

[Event "Late-Titled-Tuesday-Blitz-March-12-2024"]
[Site "Chess.com"]
[Date "2024.03.12"]
[Round "6"]
[White "Knjazj"]
[Black "cristiano78"]
[Result "1-0"]
[WhiteElo "2020"]
[BlackElo "2254"]
[TimeControl "180+1"]
[EndTime "14:59:39 PDT"]
[Termination "Knjazj won by resignation"]

1. e4 {[%clk 0:03:00.9]} 1... c5 {[%clk 0:02:59.8]} 2. Nf3 {[%clk 0:03:00.3]}
2... d6 {[%clk 0:03:00.7]} 3. Bc4 {[%clk 0:02:57.7]} 3... Nc6 {[%clk 0:03:00.6]}
4. c3 {[%clk 0:02:56.9]} 4... Nf6 {[%clk 0:03:00.2]} 5. d3 {[%clk 0:02:56]} 5...
e6 {[%clk 0:02:59.8]} 6. Bg5 {[%clk 0:02:54.8]} 6... Be7 {[%clk 0:02:59.8]} 7.
O-O {[%clk 0:02:53.3]} 7... h6 {[%clk 0:02:59.3]} 8. Bh4 {[%clk 0:02:52.8]} 8...
Bd7 {[%clk 0:02:58.5]} 9. Re1 {[%clk 0:02:49.8]} 9... O-O {[%clk 0:02:57.5]} 10.
d4 {[%clk 0:02:48.1]} 10... cxd4 {[%clk 0:02:57.2]} 11. cxd4 {[%clk 0:02:47.9]}
11... Nxe4 {[%clk 0:02:56.8]} 12. Bxe7 {[%clk 0:02:45.2]} 12... Qxe7 {[%clk
0:02:55.3]} 13. Rxe4 {[%clk 0:02:42.8]} 13... d5 {[%clk 0:02:50.9]} 14. Bxd5
{[%clk 0:02:42.5]} 14... Qc5 {[%clk 0:02:45.7]} 15. dxc5 {[%clk 0:02:41.2]} 1-0

[Event "Late-Titled-Tuesday-Blitz-March-12-2024"]
[Site "Chess.com"]
[Date "2024.03.12"]
[Round "6"]
[White "aqibjbutt"]
[Black "ilya2700"]
[Result "0-1"]
[WhiteElo "2077"]
[BlackElo "2322"]
[TimeControl "180+1"]
[EndTime "15:00:33 PDT"]
[Termination "ilya2700 won by resignation"]

1. d4 {[%clk 0:03:00.9]} 1... Nf6 {[%clk 0:02:54.4]} 2. c4 {[%clk 0:03:01.1]}
2... g6 {[%clk 0:02:53.7]} 3. Nc3 {[%clk 0:03:01.7]} 3... Bg7 {[%clk 0:02:54.1]}
4. Nf3 {[%clk 0:03:02.4]} 4... d6 {[%clk 0:02:54.7]} 5. g3 {[%clk 0:03:03]} 5...
O-O {[%clk 0:02:55.3]} 6. Bg2 {[%clk 0:03:03.2]} 6... c5 {[%clk 0:02:55.6]} 7.
O-O {[%clk 0:03:02.5]} 7... Nc6 {[%clk 0:02:55.9]} 8. d5 {[%clk 0:02:55.4]} 8...
Na5 {[%clk 0:02:55.2]} 9. Nd2 {[%clk 0:02:53.8]} 9... a6 {[%clk 0:02:54.7]} 10.
b3 {[%clk 0:02:53.4]} 10... Nxd5 {[%clk 0:02:53.8]} 11. Bxd5 {[%clk 0:02:38]}
11... Bxc3 {[%clk 0:02:51.1]} 12. Rb1 {[%clk 0:02:38.4]} 12... Bf5 {[%clk
0:02:50.2]} 13. e4 {[%clk 0:02:33.4]} 13... Bh3 {[%clk 0:02:48.9]} 14. Re1
{[%clk 0:02:20.7]} 14... e6 {[%clk 0:02:48.9]} 15. Qf3 {[%clk 0:02:17]} 15...
Be5 {[%clk 0:02:37.1]} 16. g4 {[%clk 0:02:14.8]} 16... Qh4 {[%clk 0:02:36.5]}
0-1

[Event "Late-Titled-Tuesday-Blitz-March-12-2024"]
[Site "Chess.com"]
[Date "2024.03.12"]
[Round "6"]
[White "DenLaz"]
[Black "baki83"]
[Result "1-0"]
[WhiteElo "3053"]
[BlackElo "2843"]
[TimeControl "180+1"]
[EndTime "15:00:40 PDT"]
[Termination "DenLaz won by resignation"]

1. d4 {[%clk 0:03:00.9]} 1... d5 {[%clk 0:03:00.1]} 2. c4 {[%clk 0:03:00.8]}
2... e6 {[%clk 0:03:00.7]} 3. Nf3 {[%clk 0:03:01.2]} 3... Be7 {[%clk 0:03:00.8]}
4. g3 {[%clk 0:03:01.9]} 4... Nf6 {[%clk 0:03:00.6]} 5. Bg2 {[%clk 0:03:02.5]}
5... O-O {[%clk 0:03:01]} 6. O-O {[%clk 0:03:03]} 6... b6 {[%clk 0:03:01.4]} 7.
cxd5 {[%clk 0:03:02.2]} 7... exd5 {[%clk 0:03:02.3]} 8. Nc3 {[%clk 0:03:02.7]}
8... Bb7 {[%clk 0:03:03]} 9. Ne5 {[%clk 0:03:03]} 9... Nbd7 {[%clk 0:03:03.4]}
10. Qa4 {[%clk 0:03:03]} 10... a6 {[%clk 0:02:59.5]} 11. Nxd7 {[%clk 0:02:58.7]}
11... Nxd7 {[%clk 0:02:57.9]} 12. Nxd5 {[%clk 0:02:57.8]} 12... Bd6 {[%clk
0:02:56.6]} 13. Nf6+ {[%clk 0:02:48]} 13... Nxf6 {[%clk 0:02:54.6]} 14. Bxb7
{[%clk 0:02:48.5]} 14... Rb8 {[%clk 0:02:54.7]} 15. Bg2 {[%clk 0:02:46.4]} 15...
a5 {[%clk 0:02:54.3]} 16. e4 {[%clk 0:02:45.3]} 16... b5 {[%clk 0:02:48.7]} 17.
Qc2 {[%clk 0:02:44.6]} 17... Nd7 {[%clk 0:02:47]} 18. Be3 {[%clk 0:02:41.8]}
18... Nb6 {[%clk 0:02:45.4]} 19. b3 {[%clk 0:02:42.2]} 19... Ba3 {[%clk
0:02:44.5]} 20. Rad1 {[%clk 0:02:41.3]} 20... Qe7 {[%clk 0:02:43.8]} 21. d5
{[%clk 0:02:37.6]} 21... Rfe8 {[%clk 0:02:38.8]} 22. Qc6 {[%clk 0:02:29.8]}
22... Nc8 {[%clk 0:02:32.9]} 23. e5 {[%clk 0:02:16.6]} 1-0

[Event "Late-Titled-Tuesday-Blitz-March-12-2024"]
[Site "Chess.com"]
[Date "2024.03.12"]
[Round "6"]
[White "Supergiuly"]
[Black "ExchangeAB"]
[Result "0-1"]
[WhiteElo "2358"]
[BlackElo "2498"]
[TimeControl "180+1"]
[EndTime "15:01:02 PDT"]
[Termination "ExchangeAB won by resignation"]

1. g3 {[%clk 0:03:00.9]} 1... Nf6 {[%clk 0:02:58.7]} 2. Bg2 {[%clk 0:03:01.1]}
2... d5 {[%clk 0:02:58.6]} 3. d3 {[%clk 0:03:02]} 3... c6 {[%clk 0:02:56.4]} 4.
Nf3 {[%clk 0:03:00.6]} 4... Bg4 {[%clk 0:02:53.1]} 5. O-O {[%clk 0:02:54.8]}
5... Nbd7 {[%clk 0:02:48.2]} 6. Nbd2 {[%clk 0:02:52.6]} 6... e6 {[%clk
0:02:47.1]} 7. e4 {[%clk 0:02:52.4]} 7... Bd6 {[%clk 0:02:43.3]} 8. h3 {[%clk
0:02:51.3]} 8... Bxf3 {[%clk 0:02:42.8]} 9. Bxf3 {[%clk 0:02:50.9]} 9... O-O
{[%clk 0:02:42.8]} 10. Bg2 {[%clk 0:02:50]} 10... Qc7 {[%clk 0:02:38.6]} 11. f4
{[%clk 0:02:48.1]} 11... e5 {[%clk 0:02:37.4]} 12. f5 {[%clk 0:02:46.6]} 12...
dxe4 {[%clk 0:02:36.3]} 13. Bxe4 {[%clk 0:02:41.5]} 13... Nc5 {[%clk 0:02:31.1]}
14. g4 {[%clk 0:02:37.7]} 14... Ncxe4 {[%clk 0:02:30.3]} 15. Nxe4 {[%clk
0:02:33.9]} 15... Nxe4 {[%clk 0:02:30.1]} 16. dxe4 {[%clk 0:02:34.8]} 16... Bc5+
{[%clk 0:02:30]} 17. Kh1 {[%clk 0:02:33.5]} 17... Rad8 {[%clk 0:02:29.3]} 18.
Qf3 {[%clk 0:02:33.2]} 18... f6 {[%clk 0:02:27.1]} 19. Be3 {[%clk 0:02:23.7]}
19... Bxe3 {[%clk 0:02:25.4]} 20. Qxe3 {[%clk 0:02:24.5]} 20... Qb6 {[%clk
0:02:26]} 21. Qxb6 {[%clk 0:02:23.3]} 21... axb6 {[%clk 0:02:25.9]} 22. Rad1
{[%clk 0:02:22.6]} 22... Kf7 {[%clk 0:02:24.8]} 23. Kg2 {[%clk 0:02:22.3]} 23...
Ke7 {[%clk 0:02:23.9]} 24. Kf2 {[%clk 0:02:22.3]} 24... Rd4 {[%clk 0:02:18.2]}
25. Rd2 {[%clk 0:02:18]} 25... Rxd2+ {[%clk 0:02:15.9]} 0-1

[Event "Late-Titled-Tuesday-Blitz-March-12-2024"]
[Site "Chess.com"]
[Date "2024.03.12"]
[Round "6"]
[White "DucksParadise"]
[Black "Caisachess"]
[Result "0-1"]
[WhiteElo "2556"]
[BlackElo "2390"]
[TimeControl "180+1"]
[EndTime "15:01:29 PDT"]
[Termination "Caisachess won by checkmate"]

1. e4 {[%clk 0:02:59.7]} 1... e5 {[%clk 0:02:59.1]} 2. Nf3 {[%clk 0:02:55.4]}
2... Nc6 {[%clk 0:02:58.8]} 3. Bc4 {[%clk 0:02:54.9]} 3... Bc5 {[%clk
0:02:57.3]} 4. c3 {[%clk 0:02:53.8]} 4... Nf6 {[%clk 0:02:57.1]} 5. d4 {[%clk
0:02:54.1]} 5... exd4 {[%clk 0:02:56.4]} 6. b4 {[%clk 0:02:54.5]} 6... Bb6
{[%clk 0:02:56]} 7. e5 {[%clk 0:02:52.6]} 7... d5 {[%clk 0:02:48]} 8. exf6
{[%clk 0:02:52.7]} 8... dxc4 {[%clk 0:02:48.4]} 9. Qe2+ {[%clk 0:02:53.1]} 9...
Be6 {[%clk 0:02:47.9]} 10. b5 {[%clk 0:02:52.1]} 10... d3 {[%clk 0:02:46.6]} 11.
Qe4 {[%clk 0:02:51.3]} 11... Na5 {[%clk 0:02:42.3]} 12. fxg7 {[%clk 0:02:49.7]}
12... Rg8 {[%clk 0:02:40.7]} 13. Bg5 {[%clk 0:02:49.6]} 13... Qd5 {[%clk
0:02:36.5]} 14. Qxh7 {[%clk 0:02:49.6]} 14... Kd7 {[%clk 0:02:35.3]} 15. Nbd2
{[%clk 0:02:47.5]} 15... Bf5 {[%clk 0:02:29.8]} 16. Qh6 {[%clk 0:02:19.2]} 16...
Rae8+ {[%clk 0:02:26.6]} 17. Be3 {[%clk 0:02:19]} 17... Re6 {[%clk 0:02:15.6]}
18. Qf4 {[%clk 0:02:17.3]} 18... Rxg7 {[%clk 0:02:06.9]} 19. O-O {[%clk
0:02:16.5]} 19... Rg4 {[%clk 0:02:01.7]} 20. Ne5+ {[%clk 0:01:48.8]} 20... Rxe5
{[%clk 0:01:59.4]} 21. Qh6 {[%clk 0:01:48.6]} 21... Qxg2# {[%clk 0:01:58.5]} 0-1

[Event "Late-Titled-Tuesday-Blitz-March-12-2024"]
[Site "Chess.com"]
[Date "2024.03.12"]
[Round "6"]
[White "NovakRatko"]
[Black "noblerone"]
[Result "1/2-1/2"]
[WhiteElo "2414"]
[BlackElo "2577"]
[TimeControl "180+1"]
[EndTime "15:01:43 PDT"]
[Termination "Game drawn by repetition"]

1. d4 {[%clk 0:02:39.4]} 1... d5 {[%clk 0:02:58.5]} 2. c4 {[%clk 0:02:39.9]}
2... c6 {[%clk 0:02:58.4]} 3. cxd5 {[%clk 0:02:40.5]} 3... cxd5 {[%clk
0:02:58.5]} 4. Nc3 {[%clk 0:02:41.4]} 4... Nf6 {[%clk 0:02:58.9]} 5. f3 {[%clk
0:02:42.1]} 5... Nc6 {[%clk 0:02:41.9]} 6. e4 {[%clk 0:02:40.5]} 6... e6 {[%clk
0:02:40.1]} 7. e5 {[%clk 0:02:40.5]} 7... Ng8 {[%clk 0:02:34.8]} 8. f4 {[%clk
0:02:41.4]} 8... Nh6 {[%clk 0:02:31.7]} 9. Nf3 {[%clk 0:02:40.4]} 9... Nf5
{[%clk 0:02:31.3]} 10. Bd3 {[%clk 0:02:39]} 10... Be7 {[%clk 0:02:22.9]} 11.
Bxf5 {[%clk 0:02:37.8]} 11... exf5 {[%clk 0:02:23.8]} 12. Qb3 {[%clk 0:02:37.7]}
12... Be6 {[%clk 0:02:21.7]} 13. Qxb7 {[%clk 0:02:35.9]} 13... Rc8 {[%clk
0:02:21.6]} 14. O-O {[%clk 0:02:29.9]} 14... O-O {[%clk 0:02:22.1]} 15. Qb3
{[%clk 0:02:30.3]} 15... Rb8 {[%clk 0:01:58.5]} 16. Qa4 {[%clk 0:02:28.9]} 16...
Nb4 {[%clk 0:01:51.5]} 17. Qxa7 {[%clk 0:02:21.1]} 17... Ra8 {[%clk 0:01:25.4]}
18. Qb7 {[%clk 0:02:19.7]} 18... Rb8 {[%clk 0:01:17]} 19. Qa7 {[%clk 0:02:19.2]}
19... Ra8 {[%clk 0:01:13.1]} 20. Qb7 {[%clk 0:02:18.7]} 20... Rb8 {[%clk
0:01:13.4]} 21. Qa7 {[%clk 0:02:18.4]} 1/2-1/2

[Event "Late-Titled-Tuesday-Blitz-March-12-2024"]
[Site "Chess.com"]
[Date "2024.03.12"]
[Round "6"]
[White "campochess"]
[Black "ploxoi"]
[Result "0-1"]
[WhiteElo "2186"]
[BlackElo "2406"]
[TimeControl "180+1"]
[EndTime "15:02:48 PDT"]
[Termination "ploxoi won by resignation"]

1. e4 {[%clk 0:02:59.8]} 1... c6 {[%clk 0:02:45.1]} 2. d4 {[%clk 0:02:57.9]}
2... d5 {[%clk 0:02:44.1]} 3. exd5 {[%clk 0:02:57.8]} 3... cxd5 {[%clk
0:02:44.3]} 4. c4 {[%clk 0:02:57.5]} 4... Nf6 {[%clk 0:02:43.4]} 5. Nc3 {[%clk
0:02:57.5]} 5... g6 {[%clk 0:02:41.2]} 6. Bg5 {[%clk 0:02:56.1]} 6... Bg7 {[%clk
0:02:40]} 7. Bxf6 {[%clk 0:02:54.5]} 7... Bxf6 {[%clk 0:02:39.6]} 8. Nxd5 {[%clk
0:02:54.3]} 8... Bg7 {[%clk 0:02:40]} 9. Nf3 {[%clk 0:02:48.8]} 9... Nc6 {[%clk
0:02:38.2]} 10. Be2 {[%clk 0:02:47.3]} 10... Bg4 {[%clk 0:02:36.4]} 11. O-O
{[%clk 0:02:46]} 11... O-O {[%clk 0:02:32.4]} 12. Ne3 {[%clk 0:02:30.7]} 12...
Bxf3 {[%clk 0:02:32.5]} 13. Bxf3 {[%clk 0:02:30.5]} 13... Qxd4 {[%clk
0:02:31.7]} 14. Qe2 {[%clk 0:02:23]} 14... Qb6 {[%clk 0:02:30.8]} 15. Nd5 {[%clk
0:02:18.5]} 15... Qxb2 {[%clk 0:02:28.2]} 16. Qxb2 {[%clk 0:02:17.6]} 16... Bxb2
{[%clk 0:02:27.8]} 17. Rab1 {[%clk 0:02:16.9]} 17... Bd4 {[%clk 0:02:24.1]} 18.
Rxb7 {[%clk 0:02:15.9]} 18... e6 {[%clk 0:02:24.4]} 19. Rfb1 {[%clk 0:02:06.3]}
19... exd5 {[%clk 0:02:14.9]} 20. Bxd5 {[%clk 0:02:04.4]} 20... Ne5 {[%clk
0:02:04.5]} 21. Kf1 {[%clk 0:01:53.4]} 21... Rac8 {[%clk 0:01:58.3]} 22. R1b4
{[%clk 0:01:38.9]} 22... Nd3 {[%clk 0:01:52]} 23. Rb3 {[%clk 0:01:29.4]} 23...
Nc5 {[%clk 0:01:51.6]} 24. h4 {[%clk 0:01:11.6]} 24... Nxb7 {[%clk 0:01:50.5]}
25. Rxb7 {[%clk 0:01:08]} 25... Rce8 {[%clk 0:01:49.7]} 26. g3 {[%clk
0:01:00.4]} 26... Bb6 {[%clk 0:01:42.3]} 0-1

[Event "Late-Titled-Tuesday-Blitz-March-12-2024"]
[Site "Chess.com"]
[Date "2024.03.12"]
[Round "6"]
[White "Kopytkin"]
[Black "ukchessbomber"]
[Result "0-1"]
[WhiteElo "2436"]
[BlackElo "2632"]
[TimeControl "180+1"]
[EndTime "15:02:59 PDT"]
[Termination "ukchessbomber won by checkmate"]

1. d4 {[%clk 0:03:00.9]} 1... b6 {[%clk 0:03:00.2]} 2. e4 {[%clk 0:03:00.1]}
2... Bb7 {[%clk 0:03:00.5]} 3. Nd2 {[%clk 0:03:00.5]} 3... d6 {[%clk 0:03:00.8]}
4. Bd3 {[%clk 0:02:59.5]} 4... Nd7 {[%clk 0:03:01.7]} 5. f4 {[%clk 0:02:48.7]}
5... e5 {[%clk 0:03:02.6]} 6. Ndf3 {[%clk 0:02:44.5]} 6... exd4 {[%clk
0:03:01.5]} 7. Nxd4 {[%clk 0:02:40.8]} 7... Ngf6 {[%clk 0:03:01.3]} 8. Qe2
{[%clk 0:02:24.8]} 8... Qe7 {[%clk 0:03:01.4]} 9. Nf5 {[%clk 0:02:19.6]} 9...
Qe6 {[%clk 0:03:01.9]} 10. Nd4 {[%clk 0:02:16.9]} 10... Qg4 {[%clk 0:03:01.3]}
11. Qxg4 {[%clk 0:01:39.7]} 11... Nxg4 {[%clk 0:03:02.2]} 12. Ngf3 {[%clk
0:01:39.8]} 12... Ngf6 {[%clk 0:03:01.2]} 13. O-O {[%clk 0:01:36.1]} 13... Be7
{[%clk 0:02:52.9]} 14. Nf5 {[%clk 0:01:25.8]} 14... g6 {[%clk 0:02:51.7]} 15.
Nxe7 {[%clk 0:01:25.1]} 15... Kxe7 {[%clk 0:02:52.6]} 16. e5 {[%clk 0:01:22.5]}
16... Nd5 {[%clk 0:02:52.1]} 17. Bd2 {[%clk 0:01:16.2]} 17... Nc5 {[%clk
0:02:50.8]} 18. Rfe1 {[%clk 0:00:50.4]} 18... Rhe8 {[%clk 0:02:48.7]} 19. b4
{[%clk 0:00:35.6]} 19... Ne6 {[%clk 0:02:48.2]} 20. Be4 {[%clk 0:00:25.3]} 20...
c6 {[%clk 0:02:46.9]} 21. Bxd5 {[%clk 0:00:22.8]} 21... cxd5 {[%clk 0:02:47]}
22. exd6+ {[%clk 0:00:19.1]} 22... Kxd6 {[%clk 0:02:47.9]} 23. Ne5 {[%clk
0:00:19.4]} 23... f6 {[%clk 0:02:48.5]} 24. Nd3 {[%clk 0:00:17.2]} 24... Rac8
{[%clk 0:02:48.4]} 25. c3 {[%clk 0:00:15.9]} 25... Ng7 {[%clk 0:02:48]} 26. g4
{[%clk 0:00:15]} 26... Re4 {[%clk 0:02:48]} 27. Rxe4 {[%clk 0:00:14.1]} 27...
dxe4 {[%clk 0:02:48.9]} 28. Nf2 {[%clk 0:00:12.9]} 28... f5 {[%clk 0:02:49.5]}
29. g5 {[%clk 0:00:12.7]} 29... Ne6 {[%clk 0:02:50]} 30. Rd1 {[%clk 0:00:10.4]}
30... Ke7 {[%clk 0:02:49.8]} 31. Be1 {[%clk 0:00:10.6]} 31... e3 {[%clk
0:02:49.7]} 32. Nd3 {[%clk 0:00:10.6]} 32... Rd8 {[%clk 0:02:50.3]} 33. Nb2
{[%clk 0:00:08.4]} 33... Rxd1 {[%clk 0:02:49.4]} 34. Nxd1 {[%clk 0:00:08]} 34...
Nxf4 {[%clk 0:02:50.3]} 35. Bg3 {[%clk 0:00:07.4]} 35... e2 {[%clk 0:02:51.2]}
36. Nb2 {[%clk 0:00:03.4]} 36... Nh3# {[%clk 0:02:51.7]} 0-1